[Event "*** SCC Grand Prix: Titled Tuesday Blitz"]
[Site "Chess.com"]
[Date "2020.09.29"]
[Round "10"]
[White "esrosenberg"]
[Black "Ural_bogatyr"]
[Result "1-0"]
[WhiteElo "2239"]
[BlackElo "2358"]
[TimeControl "180+1"]
[EndTime "11:55:47 PDT"]
[Termination "esrosenberg won by checkmate"]

1. Nf3 {[%clk 0:03:00.9]} 1... d5 {[%clk 0:02:54.9]} 2. c4 {[%clk 0:03:00.5]}
2... c6 {[%clk 0:02:54.8]} 3. d4 {[%clk 0:02:59.9]} 3... Nf6 {[%clk 0:02:54.5]}
4. Nc3 {[%clk 0:02:59.4]} 4... e6 {[%clk 0:02:53.9]} 5. Bg5 {[%clk 0:02:59.2]}
5... h6 {[%clk 0:02:53.3]} 6. Bxf6 {[%clk 0:02:58.7]} 6... Qxf6 {[%clk
0:02:54.2]} 7. Qb3 {[%clk 0:02:59.2]} 7... g6 {[%clk 0:02:53.6]} 8. e4 {[%clk
0:02:58.2]} 8... dxe4 {[%clk 0:02:51]} 9. Nxe4 {[%clk 0:02:59.1]} 9... Qe7
{[%clk 0:02:51.2]} 10. c5 {[%clk 0:02:58.8]} 10... Qd8 {[%clk 0:02:41.3]} 11.
Bc4 {[%clk 0:02:43.5]} 11... f5 {[%clk 0:02:13.2]} 12. Nc3 {[%clk 0:02:18.3]}
12... Qf6 {[%clk 0:01:58.6]} 13. O-O-O {[%clk 0:02:09.3]} 13... Bg7 {[%clk
0:01:31.1]} 14. Rhe1 {[%clk 0:01:57.7]} 14... Kf7 {[%clk 0:01:24.7]} 15. Ne5+
{[%clk 0:01:55.1]} 15... Kg8 {[%clk 0:01:24.6]} 16. f4 {[%clk 0:01:44.1]} 16...
Kh7 {[%clk 0:01:22.9]} 17. g3 {[%clk 0:01:28.2]} 17... Re8 {[%clk 0:01:17]} 18.
h4 {[%clk 0:01:25]} 18... Nd7 {[%clk 0:01:00.1]} 19. h5 {[%clk 0:01:21.1]} 19...
Nxe5 {[%clk 0:00:59.1]} 20. dxe5 {[%clk 0:01:21.1]} 20... Qe7 {[%clk 0:00:57.3]}
21. hxg6+ {[%clk 0:01:20.6]} 21... Kxg6 {[%clk 0:00:58.2]} 22. g4 {[%clk
0:01:14.4]} 22... Kh7 {[%clk 0:00:52.3]} 23. gxf5 {[%clk 0:01:06.4]} 23... exf5
{[%clk 0:00:53.2]} 24. Rd6 {[%clk 0:01:05.6]} 24... b5 {[%clk 0:00:44.8]} 25.
Bd3 {[%clk 0:01:03.5]} 25... Kh8 {[%clk 0:00:36.4]} 26. Rh1 {[%clk 0:01:00.8]}
26... Be6 {[%clk 0:00:36.3]} 27. Qc2 {[%clk 0:00:52]} 27... b4 {[%clk
0:00:36.3]} 28. Ne2 {[%clk 0:00:46.6]} 28... b3 {[%clk 0:00:33.2]} 29. axb3
{[%clk 0:00:45.9]} 29... Qf7 {[%clk 0:00:33.7]} 30. Nd4 {[%clk 0:00:44]} 30...
Rab8 {[%clk 0:00:26.6]} 31. Nxe6 {[%clk 0:00:39.7]} 31... Rxe6 {[%clk
0:00:26.1]} 32. Bc4 {[%clk 0:00:38.5]} 32... Rbe8 {[%clk 0:00:13.9]} 33. Rhd1
{[%clk 0:00:27.5]} 33... Qg6 {[%clk 0:00:04.9]} 34. Bxe6 {[%clk 0:00:25.6]}
34... Rxe6 {[%clk 0:00:05.8]} 35. Rxe6 {[%clk 0:00:25.5]} 35... Qxe6 {[%clk
0:00:06.7]} 36. Rd6 {[%clk 0:00:25.1]} 36... Qf7 {[%clk 0:00:04.9]} 37. Rd8+
{[%clk 0:00:22.8]} 37... Kh7 {[%clk 0:00:04.7]} 38. Qc4 {[%clk 0:00:19.2]} 38...
Qg6 {[%clk 0:00:04.1]} 39. Qg8# {[%clk 0:00:17.4]} 1-0

[Event "*** SCC Grand Prix: Titled Tuesday Blitz"]
[Site "Chess.com"]
[Date "2020.09.29"]
[Round "10"]
[White "MF1966Idrisov"]
[Black "Nikolaj_6"]
[Result "0-1"]
[WhiteElo "2354"]
[BlackElo "2560"]
[TimeControl "180+1"]
[EndTime "11:55:48 PDT"]
[Termination "Nikolaj_6 won on time"]

1. Nf3 {[%clk 0:03:00.9]} 1... Nf6 {[%clk 0:02:59.3]} 2. b3 {[%clk 0:03:00.7]}
2... g6 {[%clk 0:02:59]} 3. Bb2 {[%clk 0:03:00.9]} 3... Bg7 {[%clk 0:02:59.3]}
4. c4 {[%clk 0:03:01.1]} 4... O-O {[%clk 0:02:58.9]} 5. g3 {[%clk 0:03:01.2]}
5... d6 {[%clk 0:02:58]} 6. d4 {[%clk 0:02:58.2]} 6... Nbd7 {[%clk 0:02:57.8]}
7. Bg2 {[%clk 0:02:58]} 7... Re8 {[%clk 0:02:57.2]} 8. O-O {[%clk 0:02:58.2]}
8... c6 {[%clk 0:02:56.9]} 9. Nc3 {[%clk 0:02:56.1]} 9... e5 {[%clk 0:02:57]}
10. dxe5 {[%clk 0:02:56.2]} 10... dxe5 {[%clk 0:02:56.6]} 11. Ng5 {[%clk
0:02:56.2]} 11... Nc5 {[%clk 0:02:45.6]} 12. Qxd8 {[%clk 0:02:51.7]} 12... Rxd8
{[%clk 0:02:44.9]} 13. Rad1 {[%clk 0:02:51.5]} 13... Bf5 {[%clk 0:02:41]} 14.
Ba3 {[%clk 0:02:40.7]} 14... Bf8 {[%clk 0:02:35.9]} 15. Nf3 {[%clk 0:02:28.3]}
15... e4 {[%clk 0:02:04]} 16. Nd4 {[%clk 0:02:17.7]} 16... Nxb3 {[%clk
0:01:56.7]} 17. Bxf8 {[%clk 0:02:02.4]} 17... Nxd4 {[%clk 0:01:55.4]} 18. Be7
{[%clk 0:01:59.2]} 18... Nxe2+ {[%clk 0:01:29]} 19. Nxe2 {[%clk 0:01:57.6]}
19... Rxd1 {[%clk 0:01:29.3]} 20. Rxd1 {[%clk 0:01:57]} 20... Ng4 {[%clk
0:01:30]} 21. Nd4 {[%clk 0:01:39.7]} 21... Re8 {[%clk 0:01:26.4]} 22. Nxf5
{[%clk 0:01:38.8]} 22... gxf5 {[%clk 0:01:26]} 23. Bg5 {[%clk 0:01:24]} 23...
Ne5 {[%clk 0:01:21.9]} 24. c5 {[%clk 0:01:10.6]} 24... Nd3 {[%clk 0:01:21.7]}
25. Be3 {[%clk 0:01:08.1]} 25... Kg7 {[%clk 0:01:21.8]} 26. Rb1 {[%clk
0:01:04.6]} 26... Re7 {[%clk 0:01:19.8]} 27. Bf1 {[%clk 0:01:04]} 27... Ne5
{[%clk 0:01:17.1]} 28. Bd4 {[%clk 0:01:02.2]} 28... Kg6 {[%clk 0:01:17.4]} 29.
f4 {[%clk 0:01:00.2]} 29... Nf3+ {[%clk 0:01:16.6]} 30. Kf2 {[%clk 0:00:56.6]}
30... Nxd4 {[%clk 0:01:16.9]} 31. Rd1 {[%clk 0:00:55.3]} 31... Ne6 {[%clk
0:01:17]} 32. Rd6 {[%clk 0:00:54]} 32... f6 {[%clk 0:01:14.8]} 33. Bc4 {[%clk
0:00:43.3]} 33... Nxc5 {[%clk 0:01:14.5]} 34. Rd8 {[%clk 0:00:42.9]} 34... b5
{[%clk 0:01:09.7]} 35. Rg8+ {[%clk 0:00:41.8]} 35... Rg7 {[%clk 0:01:07.4]} 36.
Rxg7+ {[%clk 0:00:38.6]} 36... Kxg7 {[%clk 0:01:07.2]} 37. Be2 {[%clk
0:00:38.3]} 37... Kf7 {[%clk 0:01:03.9]} 38. Ke3 {[%clk 0:00:38.4]} 38... Ke6
{[%clk 0:01:04.1]} 39. Kd4 {[%clk 0:00:36]} 39... Kd6 {[%clk 0:01:02.7]} 40. Bh5
{[%clk 0:00:34.3]} 40... Ne6+ {[%clk 0:01:02.4]} 41. Kc3 {[%clk 0:00:34.5]}
41... c5 {[%clk 0:01:01.3]} 42. Bf7 {[%clk 0:00:34.2]} 42... a5 {[%clk
0:00:59.6]} 43. Bg8 {[%clk 0:00:33.7]} 43... h6 {[%clk 0:00:58.9]} 44. Bf7
{[%clk 0:00:32.5]} 44... Nc7 {[%clk 0:00:51.3]} 45. Bg6 {[%clk 0:00:31.1]} 45...
Nd5+ {[%clk 0:00:51]} 46. Kd2 {[%clk 0:00:28.3]} 46... Ne7 {[%clk 0:00:50.9]}
47. Bf7 {[%clk 0:00:26.8]} 47... c4 {[%clk 0:00:50.7]} 48. Kc3 {[%clk
0:00:24.7]} 48... Kc5 {[%clk 0:00:50.6]} 49. a3 {[%clk 0:00:22.1]} 49... b4+
{[%clk 0:00:50.6]} 50. Kc2 {[%clk 0:00:19.5]} 50... Kd4 {[%clk 0:00:50.3]} 0-1

[Event "*** SCC Grand Prix: Titled Tuesday Blitz"]
[Site "Chess.com"]
[Date "2020.09.29"]
[Round "10"]
[White "Matols"]
[Black "Grandmaster2B"]
[Result "1-0"]
[WhiteElo "2276"]
[BlackElo "2380"]
[TimeControl "180+1"]
[EndTime "11:55:52 PDT"]
[Termination "Matols won by resignation"]

1. d4 {[%clk 0:03:00.9]} 1... Nf6 {[%clk 0:02:59.8]} 2. c4 {[%clk 0:03:00.3]}
2... e6 {[%clk 0:03:00.1]} 3. g3 {[%clk 0:02:59.8]} 3... Bb4+ {[%clk 0:02:57.5]}
4. Bd2 {[%clk 0:02:58.8]} 4... Qe7 {[%clk 0:02:58.1]} 5. Bg2 {[%clk 0:02:57.3]}
5... O-O {[%clk 0:02:52.4]} 6. e4 {[%clk 0:02:55.8]} 6... d5 {[%clk 0:02:36.1]}
7. e5 {[%clk 0:02:47.5]} 7... Nfd7 {[%clk 0:02:35]} 8. cxd5 {[%clk 0:02:45.6]}
8... exd5 {[%clk 0:02:32.8]} 9. Ne2 {[%clk 0:02:40]} 9... Bxd2+ {[%clk
0:02:21.4]} 10. Qxd2 {[%clk 0:02:29.1]} 10... Nb6 {[%clk 0:02:21.2]} 11. O-O
{[%clk 0:02:24.8]} 11... Na6 {[%clk 0:02:12.8]} 12. b3 {[%clk 0:02:20.4]} 12...
Bf5 {[%clk 0:02:01.3]} 13. Nbc3 {[%clk 0:02:19.2]} 13... Rfd8 {[%clk 0:02:00.2]}
14. Rac1 {[%clk 0:02:11]} 14... Rac8 {[%clk 0:01:58.8]} 15. h3 {[%clk
0:02:08.1]} 15... h5 {[%clk 0:01:50.9]} 16. Nf4 {[%clk 0:01:49.1]} 16... Qg5
{[%clk 0:01:30.5]} 17. Qe2 {[%clk 0:01:26.9]} 17... c5 {[%clk 0:01:16.5]} 18.
Ncxd5 {[%clk 0:01:18.3]} 18... cxd4 {[%clk 0:01:04.7]} 19. h4 {[%clk 0:01:10.8]}
19... Qh6 {[%clk 0:00:53.5]} 20. Ne7+ {[%clk 0:01:09.2]} 20... Kf8 {[%clk
0:00:49.6]} 21. Nxf5 {[%clk 0:01:09]} 21... Qh7 {[%clk 0:00:43.5]} 22. Nd6
{[%clk 0:01:05.8]} 22... Rxc1 {[%clk 0:00:38.6]} 23. Rxc1 {[%clk 0:01:05.4]}
23... Nd7 {[%clk 0:00:38.5]} 24. Nxb7 {[%clk 0:01:01.3]} 24... Re8 {[%clk
0:00:38.6]} 25. Qxa6 {[%clk 0:00:55.9]} 25... Nxe5 {[%clk 0:00:28.8]} 26. Qd6+
{[%clk 0:00:50.6]} 26... Kg8 {[%clk 0:00:27.4]} 27. Qxd4 {[%clk 0:00:49]} 27...
Qf5 {[%clk 0:00:26]} 28. Nd6 {[%clk 0:00:45.2]} 28... Qd7 {[%clk 0:00:25.8]} 29.
Rd1 {[%clk 0:00:41]} 29... Re7 {[%clk 0:00:16.7]} 30. Ne4 {[%clk 0:00:35.5]}
30... Qb5 {[%clk 0:00:09.5]} 31. Ng5 {[%clk 0:00:31.2]} 31... Rd7 {[%clk
0:00:04.6]} 32. Nd5 {[%clk 0:00:29.5]} 32... f6 {[%clk 0:00:03.3]} 33. Ne6
{[%clk 0:00:26.3]} 33... Qc6 {[%clk 0:00:01.6]} 34. Nxf6+ {[%clk 0:00:21.7]}
34... gxf6 {[%clk 0:00:01.2]} 35. Bxc6 {[%clk 0:00:21.7]} 35... Rxd4 {[%clk
0:00:01]} 36. Rxd4 {[%clk 0:00:21.6]} 36... Nxc6 {[%clk 0:00:01.3]} 37. Rd7
{[%clk 0:00:21.4]} 37... Ne5 {[%clk 0:00:01.1]} 38. Rxa7 {[%clk 0:00:20.9]}
38... Nf3+ {[%clk 0:00:02]} 39. Kg2 {[%clk 0:00:20.4]} 39... Ne1+ {[%clk
0:00:02.5]} 40. Kf1 {[%clk 0:00:20.6]} 40... Nd3 {[%clk 0:00:03.4]} 41. a4
{[%clk 0:00:19.7]} 41... Nc1 {[%clk 0:00:03.2]} 42. b4 {[%clk 0:00:19]} 1-0

[Event "*** SCC Grand Prix: Titled Tuesday Blitz"]
[Site "Chess.com"]
[Date "2020.09.29"]
[Round "10"]
[White "Witik"]
[Black "IANOV0007"]
[Result "1-0"]
[WhiteElo "2679"]
[BlackElo "2500"]
[TimeControl "180+1"]
[EndTime "11:55:55 PDT"]
[Termination "Witik won by resignation"]

1. d4 {[%clk 0:03:00.9]} 1... d6 {[%clk 0:02:59.7]} 2. e4 {[%clk 0:03:00.8]}
2... Nf6 {[%clk 0:02:59.4]} 3. Nc3 {[%clk 0:03:01.3]} 3... c6 {[%clk 0:02:59.4]}
4. h3 {[%clk 0:03:00.1]} 4... Qb6 {[%clk 0:02:59]} 5. g4 {[%clk 0:02:55.1]} 5...
e5 {[%clk 0:02:57.6]} 6. Nge2 {[%clk 0:02:54.9]} 6... Nbd7 {[%clk 0:02:55.3]} 7.
Bg2 {[%clk 0:02:54.8]} 7... h6 {[%clk 0:02:54.6]} 8. O-O {[%clk 0:02:54.4]} 8...
g6 {[%clk 0:02:51.4]} 9. Be3 {[%clk 0:02:48.7]} 9... Qxb2 {[%clk 0:02:45.9]} 10.
Rb1 {[%clk 0:02:48.7]} 10... Qa3 {[%clk 0:02:45.6]} 11. f4 {[%clk 0:02:48.5]}
11... Bg7 {[%clk 0:02:31.5]} 12. fxe5 {[%clk 0:02:48]} 12... dxe5 {[%clk
0:02:31.4]} 13. d5 {[%clk 0:02:48.5]} 13... O-O {[%clk 0:02:22.7]} 14. Qd2
{[%clk 0:02:47.3]} 14... h5 {[%clk 0:02:11.8]} 15. g5 {[%clk 0:02:29.7]} 15...
Nh7 {[%clk 0:02:07.7]} 16. Kh1 {[%clk 0:01:59.6]} 16... Nb6 {[%clk 0:02:04]} 17.
Bxb6 {[%clk 0:01:57.3]} 17... axb6 {[%clk 0:02:02.7]} 18. Rxb6 {[%clk
0:01:57.2]} 18... Qc5 {[%clk 0:01:56.2]} 19. Rb3 {[%clk 0:01:55.9]} 19... Qe7
{[%clk 0:01:51.2]} 20. h4 {[%clk 0:01:49.8]} 20... Rd8 {[%clk 0:01:49.2]} 21.
Qe3 {[%clk 0:01:44.6]} 21... Nf8 {[%clk 0:01:45.9]} 22. Ng1 {[%clk 0:01:41.3]}
22... Bg4 {[%clk 0:01:43.4]} 23. Bh3 {[%clk 0:01:40]} 23... Bxh3 {[%clk
0:01:40.7]} 24. Qxh3 {[%clk 0:01:34.2]} 24... Ra3 {[%clk 0:01:35.2]} 25. Nf3
{[%clk 0:01:26.5]} 25... Rxb3 {[%clk 0:01:35]} 26. axb3 {[%clk 0:01:27.4]} 26...
Qb4 {[%clk 0:01:32.5]} 27. Nd2 {[%clk 0:01:22.7]} 27... cxd5 {[%clk 0:01:29.6]}
28. exd5 {[%clk 0:01:17.3]} 28... Nd7 {[%clk 0:01:16]} 29. Nde4 {[%clk
0:01:12.6]} 29... Nc5 {[%clk 0:01:12.7]} 30. Qf3 {[%clk 0:01:12.6]} 30... Nxe4
{[%clk 0:01:08.6]} 31. Nxe4 {[%clk 0:01:09.7]} 31... Rd7 {[%clk 0:01:05.6]} 32.
c4 {[%clk 0:01:05.8]} 32... b5 {[%clk 0:01:02.7]} 33. c5 {[%clk 0:01:04.3]}
33... Kh7 {[%clk 0:00:54.8]} 34. d6 {[%clk 0:01:01.6]} 34... Qd4 {[%clk
0:00:48.3]} 35. Rd1 {[%clk 0:00:57.8]} 35... Qb2 {[%clk 0:00:35.7]} 36. c6
{[%clk 0:00:56.7]} 36... Rd8 {[%clk 0:00:30.9]} 37. c7 {[%clk 0:00:52.4]} 37...
Rc8 {[%clk 0:00:30.4]} 38. d7 {[%clk 0:00:51.6]} 38... Rxc7 {[%clk 0:00:30.5]}
39. d8=Q {[%clk 0:00:52.2]} 39... Rc2 {[%clk 0:00:30]} 40. Rd2 {[%clk
0:00:47.6]} 40... Qb1+ {[%clk 0:00:23.2]} 41. Kh2 {[%clk 0:00:47.2]} 41... Rc1
{[%clk 0:00:23]} 42. Qe7 {[%clk 0:00:29.3]} 42... Rf1 {[%clk 0:00:16.8]} 43. Rf2
{[%clk 0:00:27.9]} 43... Re1 {[%clk 0:00:16.2]} 44. Nf6+ {[%clk 0:00:25.2]}
44... Bxf6 {[%clk 0:00:15.1]} 45. Qxf7+ {[%clk 0:00:25.1]} 45... Bg7 {[%clk
0:00:14.2]} 46. Qxg7+ {[%clk 0:00:25.2]} 46... Kxg7 {[%clk 0:00:13.7]} 47. Qf8+
{[%clk 0:00:25.8]} 1-0

[Event "*** SCC Grand Prix: Titled Tuesday Blitz"]
[Site "Chess.com"]
[Date "2020.09.29"]
[Round "10"]
[White "fabianvivasz"]
[Black "gumimis"]
[Result "1-0"]
[WhiteElo "2458"]
[BlackElo "2244"]
[TimeControl "180+1"]
[EndTime "11:55:55 PDT"]
[Termination "fabianvivasz won on time"]

1. e4 {[%clk 0:03:00.9]} 1... c5 {[%clk 0:02:58.8]} 2. Nf3 {[%clk 0:02:59.8]}
2... d6 {[%clk 0:02:58.8]} 3. d4 {[%clk 0:02:58]} 3... cxd4 {[%clk 0:02:59.7]}
4. Nxd4 {[%clk 0:02:57.4]} 4... Nf6 {[%clk 0:03:00.1]} 5. Nc3 {[%clk 0:02:57.1]}
5... a6 {[%clk 0:03:00.4]} 6. f3 {[%clk 0:02:55.8]} 6... e5 {[%clk 0:02:59.4]}
7. Nb3 {[%clk 0:02:55.9]} 7... Be6 {[%clk 0:02:58.9]} 8. Be3 {[%clk 0:02:55.9]}
8... Be7 {[%clk 0:02:59.4]} 9. Qd2 {[%clk 0:02:55]} 9... O-O {[%clk 0:02:58.8]}
10. O-O-O {[%clk 0:02:54.2]} 10... a5 {[%clk 0:02:59.2]} 11. Nd5 {[%clk
0:02:32.9]} 11... Bxd5 {[%clk 0:02:54]} 12. exd5 {[%clk 0:02:31.1]} 12... a4
{[%clk 0:02:54.4]} 13. Na1 {[%clk 0:02:29.2]} 13... Ra5 {[%clk 0:02:46.9]} 14.
c4 {[%clk 0:02:25.9]} 14... Nbd7 {[%clk 0:02:02.1]} 15. Nc2 {[%clk 0:02:07]}
15... e4 {[%clk 0:01:55.1]} 16. Na3 {[%clk 0:01:33]} 16... Ne5 {[%clk
0:01:45.4]} 17. f4 {[%clk 0:01:21.4]} 17... Neg4 {[%clk 0:01:39.4]} 18. Bd4
{[%clk 0:01:21.2]} 18... e3 {[%clk 0:01:35.2]} 19. Bxe3 {[%clk 0:00:47.8]} 19...
Ne4 {[%clk 0:01:33.4]} 20. Qe2 {[%clk 0:00:44.8]} 20... Nxe3 {[%clk 0:01:28.9]}
21. Qxe3 {[%clk 0:00:45.7]} 21... f5 {[%clk 0:01:28.2]} 22. Bd3 {[%clk
0:00:36.1]} 22... Bf6 {[%clk 0:01:08.6]} 23. g4 {[%clk 0:00:25.9]} 23... g6
{[%clk 0:00:58.8]} 24. gxf5 {[%clk 0:00:24.4]} 24... gxf5 {[%clk 0:00:59.7]} 25.
Bxe4 {[%clk 0:00:23.4]} 25... Re8 {[%clk 0:00:58.6]} 26. Qg3+ {[%clk 0:00:20.4]}
26... Kh8 {[%clk 0:00:58.7]} 27. Bxf5 {[%clk 0:00:20.7]} 27... Qb6 {[%clk
0:00:55.1]} 28. Rd2 {[%clk 0:00:13.3]} 28... Re3 {[%clk 0:00:42.8]} 29. Qf2
{[%clk 0:00:05.8]} 29... Bd4 {[%clk 0:00:19.8]} 30. Kb1 {[%clk 0:00:02.8]} 30...
Rd3 {[%clk 0:00:06]} 31. Qh4 {[%clk 0:00:02.5]} 1-0

[Event "*** SCC Grand Prix: Titled Tuesday Blitz"]
[Site "Chess.com"]
[Date "2020.09.29"]
[Round "10"]
[White "abykhovsky"]
[Black "Sibelephant"]
[Result "1-0"]
[WhiteElo "2754"]
[BlackElo "3024"]
[TimeControl "180+1"]
[EndTime "11:55:57 PDT"]
[Termination "abykhovsky won by resignation"]

1. d4 {[%clk 0:03:00.9]} 1... d5 {[%clk 0:03:00.1]} 2. Nf3 {[%clk 0:03:00.4]}
2... Nf6 {[%clk 0:03:00]} 3. c4 {[%clk 0:03:01.3]} 3... c6 {[%clk 0:02:59.3]} 4.
Nc3 {[%clk 0:03:01.4]} 4... a6 {[%clk 0:02:59.4]} 5. c5 {[%clk 0:03:01.5]} 5...
Bf5 {[%clk 0:02:58.3]} 6. Bf4 {[%clk 0:03:01.6]} 6... Nbd7 {[%clk 0:02:57.7]} 7.
e3 {[%clk 0:03:02.1]} 7... Nh5 {[%clk 0:02:54.6]} 8. h3 {[%clk 0:03:01.7]} 8...
Nxf4 {[%clk 0:02:54.3]} 9. exf4 {[%clk 0:03:02.3]} 9... g6 {[%clk 0:02:41.5]}
10. Bd3 {[%clk 0:03:02.1]} 10... Bxd3 {[%clk 0:02:34.6]} 11. Qxd3 {[%clk
0:03:03]} 11... Bg7 {[%clk 0:02:33.6]} 12. h4 {[%clk 0:02:59.5]} 12... b6 {[%clk
0:02:22.8]} 13. b4 {[%clk 0:02:46.5]} 13... a5 {[%clk 0:02:20.1]} 14. b5 {[%clk
0:02:46.7]} 14... Rc8 {[%clk 0:02:13.5]} 15. bxc6 {[%clk 0:02:46.1]} 15... Rxc6
{[%clk 0:02:13]} 16. O-O {[%clk 0:02:41.5]} 16... bxc5 {[%clk 0:02:09.1]} 17.
Nxd5 {[%clk 0:02:40.4]} 17... e6 {[%clk 0:02:05.1]} 18. Ne3 {[%clk 0:01:21.4]}
18... O-O {[%clk 0:01:42.9]} 19. Rac1 {[%clk 0:01:14.4]} 19... Qa8 {[%clk
0:00:57.6]} 20. dxc5 {[%clk 0:01:00.7]} 20... Nxc5 {[%clk 0:00:57.4]} 21. Qe2
{[%clk 0:00:55]} 21... Ne4 {[%clk 0:00:51.5]} 22. Ne5 {[%clk 0:00:49.5]} 22...
Rc3 {[%clk 0:00:45.8]} 23. h5 {[%clk 0:00:31]} 23... Rfc8 {[%clk 0:00:43.9]} 24.
Rcd1 {[%clk 0:00:31.4]} 24... R3c7 {[%clk 0:00:33.6]} 25. Rd4 {[%clk 0:00:27.7]}
25... Nc3 {[%clk 0:00:32.4]} 26. Qd2 {[%clk 0:00:26.3]} 26... Nb5 {[%clk
0:00:23.7]} 27. Rd7 {[%clk 0:00:20.1]} 27... gxh5 {[%clk 0:00:21.7]} 28. Rd1
{[%clk 0:00:14.7]} 28... Bxe5 {[%clk 0:00:15.5]} 29. fxe5 {[%clk 0:00:14.9]}
29... Nc3 {[%clk 0:00:15.8]} 30. Re1 {[%clk 0:00:08.5]} 30... Rxd7 {[%clk
0:00:14.6]} 31. Qxd7 {[%clk 0:00:08.1]} 31... h6 {[%clk 0:00:10.2]} 32. Qe7
{[%clk 0:00:04.2]} 32... Qe4 {[%clk 0:00:07.2]} 33. Qf6 {[%clk 0:00:04.7]} 33...
Nd5 {[%clk 0:00:05.2]} 34. Qxh6 {[%clk 0:00:04.7]} 34... Nxe3 {[%clk 0:00:04.2]}
35. Rxe3 {[%clk 0:00:04.8]} 35... Rc1+ {[%clk 0:00:03.1]} 36. Kh2 {[%clk
0:00:05.3]} 36... Qh7 {[%clk 0:00:01.3]} 37. Rg3+ {[%clk 0:00:05.2]} 37... Kh8
{[%clk 0:00:02]} 38. Qf8+ {[%clk 0:00:05.4]} 1-0

[Event "*** SCC Grand Prix: Titled Tuesday Blitz"]
[Site "Chess.com"]
[Date "2020.09.29"]
[Round "10"]
[White "DrMamaliga"]
[Black "kleopl"]
[Result "1/2-1/2"]
[WhiteElo "2324"]
[BlackElo "2465"]
[TimeControl "180+1"]
[EndTime "11:55:58 PDT"]
[Termination "Game drawn by repetition"]

1. e4 {[%clk 0:03:00.9]} 1... d5 {[%clk 0:02:58.7]} 2. exd5 {[%clk 0:03:00]}
2... Qxd5 {[%clk 0:02:59.6]} 3. Nc3 {[%clk 0:02:58.3]} 3... Qd6 {[%clk
0:02:59.6]} 4. d4 {[%clk 0:02:57.4]} 4... Nf6 {[%clk 0:02:59.6]} 5. Nf3 {[%clk
0:02:56.7]} 5... c6 {[%clk 0:03:00]} 6. Ne5 {[%clk 0:02:54.2]} 6... Nbd7 {[%clk
0:02:59.9]} 7. Bf4 {[%clk 0:02:52.5]} 7... Nd5 {[%clk 0:02:51.9]} 8. Nxd5 {[%clk
0:02:51.4]} 8... cxd5 {[%clk 0:02:49.4]} 9. c3 {[%clk 0:02:41.8]} 9... Qe6
{[%clk 0:02:44.3]} 10. Be2 {[%clk 0:02:39]} 10... f6 {[%clk 0:02:39.6]} 11. Bg4
{[%clk 0:02:28.4]} 11... Qa6 {[%clk 0:02:26.1]} 12. Bxd7+ {[%clk 0:02:17.4]}
12... Bxd7 {[%clk 0:02:27]} 13. Qh5+ {[%clk 0:02:13.4]} 13... g6 {[%clk
0:02:15.3]} 14. Nxg6 {[%clk 0:02:13]} 14... Qe6+ {[%clk 0:02:11.7]} 15. Be3
{[%clk 0:02:06.5]} 15... Qf7 {[%clk 0:02:07.8]} 16. Nf4 {[%clk 0:02:06]} 16...
Qxh5 {[%clk 0:01:57.1]} 17. Nxh5 {[%clk 0:02:06.9]} 17... Kf7 {[%clk 0:01:57.5]}
18. Nf4 {[%clk 0:01:59.8]} 18... Bc6 {[%clk 0:01:53.7]} 19. Nd3 {[%clk
0:01:58.7]} 19... Bb5 {[%clk 0:01:48.8]} 20. Kd2 {[%clk 0:01:57.7]} 20... h5
{[%clk 0:01:46.5]} 21. Rae1 {[%clk 0:01:48.9]} 21... h4 {[%clk 0:01:43.9]} 22.
g3 {[%clk 0:01:43.6]} 22... hxg3 {[%clk 0:01:43.2]} 23. hxg3 {[%clk 0:01:44.5]}
23... Bg7 {[%clk 0:01:36.7]} 24. Nf4 {[%clk 0:01:42.5]} 24... Bc6 {[%clk
0:01:31.8]} 25. Nh5 {[%clk 0:01:38.5]} 25... e6 {[%clk 0:01:20.2]} 26. Nxg7
{[%clk 0:01:23.5]} 26... Kxg7 {[%clk 0:01:18.7]} 27. Bf4 {[%clk 0:01:24]} 27...
Rxh1 {[%clk 0:01:16.7]} 28. Rxh1 {[%clk 0:01:24.9]} 28... Rh8 {[%clk 0:01:11.2]}
29. Re1 {[%clk 0:01:20.3]} 29... Bd7 {[%clk 0:01:11.3]} 30. b3 {[%clk
0:01:17.9]} 30... Rc8 {[%clk 0:01:10.3]} 31. Rc1 {[%clk 0:01:16.1]} 31... b5
{[%clk 0:01:08]} 32. Kd3 {[%clk 0:01:12.2]} 32... Be8 {[%clk 0:01:04.4]} 33. Kd2
{[%clk 0:01:07.8]} 33... Bg6 {[%clk 0:01:03.9]} 34. Ra1 {[%clk 0:01:03.7]} 34...
Be8 {[%clk 0:00:59.9]} 35. a4 {[%clk 0:01:00.6]} 35... bxa4 {[%clk 0:01:00]} 36.
bxa4 {[%clk 0:00:59.6]} 36... Rc6 {[%clk 0:00:57.8]} 37. a5 {[%clk 0:00:58]}
37... Ra6 {[%clk 0:00:55.1]} 38. Kc2 {[%clk 0:00:53.3]} 38... Bb5 {[%clk
0:00:52.2]} 39. Bb8 {[%clk 0:00:45.3]} 39... Bc4 {[%clk 0:00:48.6]} 40. Kb2
{[%clk 0:00:43]} 40... Kf7 {[%clk 0:00:47.3]} 41. Ra4 {[%clk 0:00:34.1]} 41...
Ke7 {[%clk 0:00:41.2]} 42. Bf4 {[%clk 0:00:27.2]} 42... Rc6 {[%clk 0:00:39.3]}
43. Rb4 {[%clk 0:00:24.1]} 43... a6 {[%clk 0:00:39.6]} 44. Rb7+ {[%clk
0:00:22.2]} 44... Ke8 {[%clk 0:00:39.8]} 45. Ka3 {[%clk 0:00:17.7]} 45... Bb5
{[%clk 0:00:39.5]} 46. Kb3 {[%clk 0:00:13.4]} 46... Bc4+ {[%clk 0:00:39.2]} 47.
Kb4 {[%clk 0:00:13.6]} 47... Bd3 {[%clk 0:00:36.4]} 48. Rc7 {[%clk 0:00:13.9]}
48... Rxc7 {[%clk 0:00:35.5]} 49. Bxc7 {[%clk 0:00:14.8]} 49... Kd7 {[%clk
0:00:35.8]} 50. Bf4 {[%clk 0:00:14.5]} 50... Be2 {[%clk 0:00:35.7]} 51. Kc5
{[%clk 0:00:13.8]} 51... Bd3 {[%clk 0:00:35.5]} 52. Kb6 {[%clk 0:00:13.9]} 52...
Bc4 {[%clk 0:00:35.5]} 53. Kc5 {[%clk 0:00:13.6]} 53... Bd3 {[%clk 0:00:35.7]}
54. Kb6 {[%clk 0:00:13.8]} 54... Bc4 {[%clk 0:00:36]} 55. Kc5 {[%clk 0:00:14.3]}
55... Bd3 {[%clk 0:00:36.4]} 1/2-1/2